[Event "Late-Titled-Tuesday-Blitz-June-25-2024"]
[Site "Chess.com"]
[Date "2024.06.25"]
[Round "2"]
[White "albayo"]
[Black "Boundless_Strike"]
[Result "0-1"]
[WhiteElo "2400"]
[BlackElo "2718"]
[TimeControl "180+1"]
[EndTime "14:17:57 PDT"]
[Termination "Boundless_Strike won on time"]

1. c4 {[%clk 0:02:56.2]} 1... d6 {[%clk 0:02:58.9]} 2. Nf3 {[%clk 0:02:54.7]}
2... e5 {[%clk 0:02:59.2]} 3. Nc3 {[%clk 0:02:54]} 3... f5 {[%clk 0:02:59.2]} 4.
g3 {[%clk 0:02:50.4]} 4... Nf6 {[%clk 0:02:59.2]} 5. d4 {[%clk 0:02:48.4]} 5...
Nbd7 {[%clk 0:02:57]} 6. Bg5 {[%clk 0:02:44.6]} 6... Be7 {[%clk 0:02:55.3]} 7.
Qc2 {[%clk 0:02:40.8]} 7... O-O {[%clk 0:02:50.3]} 8. dxe5 {[%clk 0:02:31.1]}
8... Nxe5 {[%clk 0:02:45.3]} 9. Nxe5 {[%clk 0:02:31.1]} 9... dxe5 {[%clk
0:02:46.1]} 10. Rd1 {[%clk 0:02:30.3]} 10... Qe8 {[%clk 0:02:44.5]} 11. Bg2
{[%clk 0:02:30.8]} 11... c6 {[%clk 0:02:42.2]} 12. O-O {[%clk 0:02:27.8]} 12...
Qh5 {[%clk 0:02:38.4]} 13. Bxf6 {[%clk 0:02:23.9]} 13... Rxf6 {[%clk 0:02:39.1]}
14. Bf3 {[%clk 0:02:12.9]} 14... Qh3 {[%clk 0:02:38.3]} 15. Bg2 {[%clk
0:02:12.8]} 15... Qh5 {[%clk 0:02:32.5]} 16. Bf3 {[%clk 0:02:12.3]} 16... Qg5
{[%clk 0:02:32.8]} 17. Qd2 {[%clk 0:02:10.6]} 17... Qxd2 {[%clk 0:02:27.5]} 18.
Rxd2 {[%clk 0:02:11.5]} 18... e4 {[%clk 0:02:28.2]} 19. Bg2 {[%clk 0:02:10.3]}
19... Be6 {[%clk 0:02:28.6]} 20. b3 {[%clk 0:02:06.4]} 20... Bb4 {[%clk
0:02:27.9]} 21. Rc1 {[%clk 0:02:03.1]} 21... Rff8 {[%clk 0:02:20.9]} 22. e3
{[%clk 0:01:55.6]} 22... Rfd8 {[%clk 0:02:20.2]} 23. Rd4 {[%clk 0:01:55.7]}
23... c5 {[%clk 0:02:12.6]} 24. Rxd8+ {[%clk 0:01:50.4]} 24... Rxd8 {[%clk
0:02:13.5]} 25. Nb5 {[%clk 0:01:35.8]} 25... a6 {[%clk 0:02:08.9]} 26. Nc7
{[%clk 0:01:34.9]} 26... Bf7 {[%clk 0:02:09.2]} 27. g4 {[%clk 0:01:26.8]} 27...
g6 {[%clk 0:02:07.9]} 28. gxf5 {[%clk 0:01:26.8]} 28... gxf5 {[%clk 0:02:08.7]}
29. Bh3 {[%clk 0:01:27]} 29... Rd7 {[%clk 0:02:02.8]} 30. Na8 {[%clk 0:01:12.4]}
30... Be6 {[%clk 0:01:56.7]} 31. Nb6 {[%clk 0:01:09.2]} 31... Rd2 {[%clk
0:01:55.9]} 32. Nd5 {[%clk 0:01:06.8]} 32... Bxd5 {[%clk 0:01:54.3]} 33. cxd5
{[%clk 0:01:07.1]} 33... Rxd5 {[%clk 0:01:54.4]} 34. Rc2 {[%clk 0:01:06.9]}
34... Kf7 {[%clk 0:01:52.7]} 35. Kg2 {[%clk 0:01:06.7]} 35... Kf6 {[%clk
0:01:52.6]} 36. f3 {[%clk 0:01:07]} 36... Rd3 {[%clk 0:01:49.8]} 37. fxe4 {[%clk
0:01:05.4]} 37... fxe4 {[%clk 0:01:50.7]} 38. Kf2 {[%clk 0:00:59.2]} 38... Bd2
{[%clk 0:01:47.4]} 39. Bf1 {[%clk 0:00:59.1]} 39... Bxe3+ {[%clk 0:01:44.8]} 40.
Kg2 {[%clk 0:00:52.6]} 40... Rd5 {[%clk 0:01:41.4]} 41. Re2 {[%clk 0:00:48.8]}
41... Rg5+ {[%clk 0:01:39.4]} 42. Kh3 {[%clk 0:00:47.9]} 42... Bg1 {[%clk
0:01:27.9]} 43. Rxe4 {[%clk 0:00:37.1]} 43... Rh5+ {[%clk 0:01:27.8]} 44. Kg2
{[%clk 0:00:31.7]} 44... Bxh2 {[%clk 0:01:27.5]} 45. Be2 {[%clk 0:00:31]} 45...
Rh6 {[%clk 0:01:27.7]} 46. a4 {[%clk 0:00:21.2]} 46... Be5 {[%clk 0:01:27.5]}
47. a5 {[%clk 0:00:20.5]} 47... Rh2+ {[%clk 0:01:26.4]} 48. Kf1 {[%clk
0:00:18.5]} 48... Kf5 {[%clk 0:01:26.9]} 49. Bf3 {[%clk 0:00:18.1]} 49... Rh3
{[%clk 0:01:26.4]} 50. Kf2 {[%clk 0:00:17.5]} 50... Rh2+ {[%clk 0:01:22.5]} 51.
Ke3 {[%clk 0:00:17.9]} 51... Bd4+ {[%clk 0:01:21.4]} 52. Kd3 {[%clk 0:00:17.7]}
52... Rf2 {[%clk 0:01:21.4]} 53. Bg4+ {[%clk 0:00:15.5]} 53... Kg5 {[%clk
0:01:21.1]} 54. Bc8 {[%clk 0:00:15.4]} 54... Rf3+ {[%clk 0:01:19.1]} 55. Kc4
{[%clk 0:00:14.8]} 55... Rc3+ {[%clk 0:01:19.7]} 56. Kd5 {[%clk 0:00:15.2]}
56... Rxb3 {[%clk 0:01:20.2]} 57. Re7 {[%clk 0:00:14.7]} 57... Rb5 {[%clk
0:01:19.5]} 58. Rxh7 {[%clk 0:00:10.5]} 58... Rxa5 {[%clk 0:01:17.3]} 59. Rxb7
{[%clk 0:00:10.9]} 59... Kf4 {[%clk 0:01:17.4]} 60. Ra7 {[%clk 0:00:10.8]} 60...
Ke3 {[%clk 0:01:17.6]} 61. Rxa6 {[%clk 0:00:10.3]} 61... Rb5 {[%clk 0:01:17.6]}
62. Ra3+ {[%clk 0:00:08.4]} 62... Kd2 {[%clk 0:01:17.9]} 63. Ba6 {[%clk
0:00:08.5]} 63... Rb8 {[%clk 0:01:16.3]} 64. Ra2+ {[%clk 0:00:07.4]} 64... Kc3
{[%clk 0:01:16.1]} 65. Ra4 {[%clk 0:00:05.7]} 65... Rd8+ {[%clk 0:01:15.6]} 66.
Kc6 {[%clk 0:00:04.8]} 66... Bf2 {[%clk 0:01:11.8]} 67. Rc4+ {[%clk 0:00:04.7]}
67... Kb3 {[%clk 0:01:11.6]} 68. Rc1 {[%clk 0:00:04.5]} 68... Bd4 {[%clk
0:01:06.6]} 69. Bc4+ {[%clk 0:00:04.3]} 69... Kb2 {[%clk 0:01:06.4]} 70. Rf1
{[%clk 0:00:04.6]} 70... Be3 {[%clk 0:01:04]} 71. Re1 {[%clk 0:00:04]} 71... Re8
{[%clk 0:01:03.5]} 72. Kd7 {[%clk 0:00:03.5]} 72... Re5 {[%clk 0:01:03.3]} 73.
Kd6 {[%clk 0:00:03]} 73... Re4 {[%clk 0:01:01.8]} 74. Bd5 {[%clk 0:00:02.9]}
74... Bf4+ {[%clk 0:01:01.9]} 0-1

[Event "Late-Titled-Tuesday-Blitz-June-25-2024"]
[Site "Chess.com"]
[Date "2024.06.25"]
[Round "2"]
[White "purpurice"]
[Black "TreinadorBR"]
[Result "1-0"]
[WhiteElo "2675"]
[BlackElo "2273"]
[TimeControl "180+1"]
[EndTime "14:17:58 PDT"]
[Termination "purpurice won by resignation"]

1. d4 {[%clk 0:03:00.9]} 1... d5 {[%clk 0:02:59.5]} 2. Nc3 {[%clk 0:03:01.5]}
2... Nf6 {[%clk 0:02:58.9]} 3. Bf4 {[%clk 0:03:02.1]} 3... e6 {[%clk 0:02:57.5]}
4. e3 {[%clk 0:03:01.8]} 4... Be7 {[%clk 0:02:57.1]} 5. Nb5 {[%clk 0:03:00.1]}
5... Na6 {[%clk 0:02:56.5]} 6. Nf3 {[%clk 0:03:00.2]} 6... O-O {[%clk
0:02:55.3]} 7. c4 {[%clk 0:02:58.3]} 7... c6 {[%clk 0:02:55.7]} 8. Nc3 {[%clk
0:02:58.5]} 8... c5 {[%clk 0:02:54.7]} 9. cxd5 {[%clk 0:02:56.9]} 9... cxd4
{[%clk 0:02:51.2]} 10. Qxd4 {[%clk 0:02:52.4]} 10... Nb4 {[%clk 0:02:46.8]} 11.
Qd2 {[%clk 0:02:45.4]} 11... Nbxd5 {[%clk 0:02:46.2]} 12. Be5 {[%clk 0:02:42.8]}
12... Qb6 {[%clk 0:02:38.1]} 13. Bc4 {[%clk 0:02:39.7]} 13... Rd8 {[%clk
0:02:34.4]} 14. Bd4 {[%clk 0:02:37.7]} 14... Bc5 {[%clk 0:02:31.9]} 15. Na4
{[%clk 0:02:30.3]} 15... Bb4 {[%clk 0:02:23.1]} 16. Nxb6 {[%clk 0:02:18.2]}
16... Bxd2+ {[%clk 0:02:20.3]} 17. Nxd2 {[%clk 0:02:17.9]} 17... Nxb6 {[%clk
0:02:19.3]} 18. Bb3 {[%clk 0:02:14.7]} 18... Bd7 {[%clk 0:02:16.5]} 19. O-O
{[%clk 0:02:15]} 19... Bb5 {[%clk 0:02:02.1]} 20. Rfd1 {[%clk 0:02:15.1]} 20...
Nbd5 {[%clk 0:01:57.3]} 21. Rac1 {[%clk 0:02:10.2]} 21... a6 {[%clk 0:01:55.3]}
22. Nf3 {[%clk 0:02:07.1]} 22... Be2 {[%clk 0:01:54.7]} 23. Re1 {[%clk
0:02:04.6]} 23... Bxf3 {[%clk 0:01:54.7]} 24. gxf3 {[%clk 0:02:05.5]} 24... Rac8
{[%clk 0:01:53.6]} 25. Kf1 {[%clk 0:02:00]} 25... Nb4 {[%clk 0:01:50.4]} 26. Ke2
{[%clk 0:01:57.1]} 26... Nc6 {[%clk 0:01:47.5]} 27. Bb6 {[%clk 0:01:53.5]} 27...
Rd7 {[%clk 0:01:40.9]} 28. Red1 {[%clk 0:01:53.8]} 28... Kf8 {[%clk 0:01:37.9]}
29. Ba4 {[%clk 0:01:44.7]} 29... Ke8 {[%clk 0:01:33.9]} 30. a3 {[%clk
0:01:39.7]} 30... Nd5 {[%clk 0:01:32.5]} 31. Bd4 {[%clk 0:01:37.4]} 31... Nxd4+
{[%clk 0:01:31]} 32. exd4 {[%clk 0:01:35.1]} 32... Rxc1 {[%clk 0:01:15.4]} 33.
Bxd7+ {[%clk 0:01:34.5]} 33... Kxd7 {[%clk 0:01:16.3]} 34. Rxc1 {[%clk
0:01:35.2]} 34... Nf4+ {[%clk 0:01:14.9]} 35. Ke3 {[%clk 0:01:34.4]} 35... Nd5+
{[%clk 0:01:14.7]} 36. Kd2 {[%clk 0:01:35.1]} 36... g6 {[%clk 0:01:12.8]} 37.
Rg1 {[%clk 0:01:30.1]} 37... h5 {[%clk 0:01:12]} 38. Rc1 {[%clk 0:01:29.1]}
38... Nf4 {[%clk 0:01:10.3]} 39. Ke3 {[%clk 0:01:25.2]} 39... g5 {[%clk
0:01:08.5]} 40. h4 {[%clk 0:01:18.6]} 40... Ng2+ {[%clk 0:01:07.9]} 41. Ke4
{[%clk 0:01:16.2]} 41... Nxh4 {[%clk 0:01:08.8]} 42. Rg1 {[%clk 0:01:05]} 42...
f5+ {[%clk 0:01:08.4]} 43. Ke3 {[%clk 0:01:00.1]} 43... g4 {[%clk 0:01:06.8]}
44. Rh1 {[%clk 0:00:49.9]} 44... Ng2+ {[%clk 0:01:04.7]} 45. Ke2 {[%clk
0:00:49.5]} 45... h4 {[%clk 0:01:05.6]} 46. fxg4 {[%clk 0:00:49.1]} 46... fxg4
{[%clk 0:01:06.5]} 47. Rh2 {[%clk 0:00:38]} 47... h3 {[%clk 0:01:03.8]} 48. Kd3
{[%clk 0:00:33.7]} 48... Kd6 {[%clk 0:01:02.7]} 49. Ke4 {[%clk 0:00:34.3]} 49...
Ne1 {[%clk 0:01:01.7]} 50. Rh1 {[%clk 0:00:32]} 50... Nf3 {[%clk 0:00:56.1]} 51.
Kf4 {[%clk 0:00:30.2]} 51... Nxd4 {[%clk 0:00:51.3]} 52. Kxg4 {[%clk 0:00:30.5]}
52... Kd5 {[%clk 0:00:44.2]} 53. Rxh3 {[%clk 0:00:30.7]} 53... e5 {[%clk
0:00:39.8]} 54. Rh5 {[%clk 0:00:29.5]} 54... Ke4 {[%clk 0:00:38]} 55. Rh8 {[%clk
0:00:25.7]} 55... a5 {[%clk 0:00:34.8]} 56. Re8 {[%clk 0:00:25.7]} 56... Kd5
{[%clk 0:00:32.2]} 57. Rb8 {[%clk 0:00:21.6]} 57... b5 {[%clk 0:00:31.1]} 58.
Ra8 {[%clk 0:00:16.6]} 58... Nc6 {[%clk 0:00:30.3]} 59. Re8 {[%clk 0:00:15.3]}
59... Kc4 {[%clk 0:00:28.9]} 60. Rc8 {[%clk 0:00:14.3]} 60... Kd5 {[%clk
0:00:29]} 61. Kf3 {[%clk 0:00:14.9]} 61... b4 {[%clk 0:00:28.9]} 62. axb4 {[%clk
0:00:12.5]} 62... axb4 {[%clk 0:00:29.8]} 63. Ke3 {[%clk 0:00:12.8]} 63... Kc5
{[%clk 0:00:25.7]} 64. Ke4 {[%clk 0:00:12.5]} 64... Kd6 {[%clk 0:00:24.2]} 65.
Rxc6+ {[%clk 0:00:13]} 65... Kxc6 {[%clk 0:00:24.1]} 66. Kxe5 {[%clk 0:00:13.9]}
66... Kc5 {[%clk 0:00:24.3]} 67. b3 {[%clk 0:00:14.5]} 1-0

[Event "Late-Titled-Tuesday-Blitz-June-25-2024"]
[Site "Chess.com"]
[Date "2024.06.25"]
[Round "2"]
[White "JackRodgers"]
[Black "TigrVShlyape"]
[Result "0-1"]
[WhiteElo "2523"]
[BlackElo "3000"]
[TimeControl "180+1"]
[EndTime "14:18:08 PDT"]
[Termination "TigrVShlyape won by resignation"]

1. d4 {[%clk 0:03:00.9]} 1... d5 {[%clk 0:02:58.5]} 2. Bg5 {[%clk 0:03:00.1]}
2... h6 {[%clk 0:02:57.8]} 3. Bh4 {[%clk 0:03:00.3]} 3... c6 {[%clk 0:02:58.1]}
4. e3 {[%clk 0:03:00.1]} 4... Qb6 {[%clk 0:02:58.6]} 5. Qc1 {[%clk 0:03:00.4]}
5... Bf5 {[%clk 0:02:58.6]} 6. Nd2 {[%clk 0:02:54.9]} 6... e6 {[%clk 0:02:58.6]}
7. c4 {[%clk 0:02:55]} 7... Be7 {[%clk 0:02:56.6]} 8. c5 {[%clk 0:02:52.9]} 8...
Qd8 {[%clk 0:02:55.2]} 9. Bxe7 {[%clk 0:02:52.6]} 9... Qxe7 {[%clk 0:02:52.6]}
10. Ngf3 {[%clk 0:02:48.8]} 10... Nd7 {[%clk 0:02:51.4]} 11. b4 {[%clk
0:02:39.7]} 11... a6 {[%clk 0:02:49.5]} 12. Be2 {[%clk 0:02:39.1]} 12... Ngf6
{[%clk 0:02:48.9]} 13. O-O {[%clk 0:02:35.7]} 13... O-O {[%clk 0:02:48]} 14. h3
{[%clk 0:02:27.6]} 14... e5 {[%clk 0:02:47]} 15. dxe5 {[%clk 0:02:27.4]} 15...
Nxe5 {[%clk 0:02:46.4]} 16. Nxe5 {[%clk 0:02:26.9]} 16... Qxe5 {[%clk
0:02:46.1]} 17. Nf3 {[%clk 0:02:19.9]} 17... Qe7 {[%clk 0:02:43.8]} 18. Nd4
{[%clk 0:02:06]} 18... Be4 {[%clk 0:02:28.6]} 19. a4 {[%clk 0:02:01.3]} 19...
Rac8 {[%clk 0:02:19.3]} 20. Bf3 {[%clk 0:01:42.5]} 20... Bxf3 {[%clk 0:02:16]}
21. Nxf3 {[%clk 0:01:43.4]} 21... a5 {[%clk 0:02:14.7]} 22. Rb1 {[%clk
0:01:37.7]} 22... Ne4 {[%clk 0:02:13.3]} 23. Nd2 {[%clk 0:01:35.1]} 23... axb4
{[%clk 0:02:12.1]} 24. Nxe4 {[%clk 0:01:35.2]} 24... Qxe4 {[%clk 0:02:12.3]} 25.
Qd2 {[%clk 0:01:27.1]} 25... Ra8 {[%clk 0:02:01.8]} 26. Qxb4 {[%clk 0:01:17.7]}
26... Qxb4 {[%clk 0:01:37.7]} 27. Rxb4 {[%clk 0:01:18.6]} 27... Rfe8 {[%clk
0:01:37.2]} 28. Rxb7 {[%clk 0:01:07.4]} 28... Rxa4 {[%clk 0:01:36.1]} 29. Rc7
{[%clk 0:01:01.3]} 29... Re6 {[%clk 0:01:35.5]} 30. Rc1 {[%clk 0:00:48]} 30...
Rf6 {[%clk 0:01:32]} 31. Rc2 {[%clk 0:00:45.5]} 31... g5 {[%clk 0:01:30.1]} 32.
g3 {[%clk 0:00:41.4]} 32... Kg7 {[%clk 0:01:26.7]} 33. Kg2 {[%clk 0:00:41]}
33... h5 {[%clk 0:01:25.6]} 34. Rb7 {[%clk 0:00:29.8]} 34... Re6 {[%clk
0:01:21.3]} 35. Rb6 {[%clk 0:00:27.6]} 35... Kg6 {[%clk 0:01:13.6]} 36. Rb8
{[%clk 0:00:27.6]} 36... g4 {[%clk 0:00:59.3]} 37. h4 {[%clk 0:00:26.9]} 37...
Rc4 {[%clk 0:00:48.8]} 38. Rxc4 {[%clk 0:00:22.8]} 38... dxc4 {[%clk 0:00:49.1]}
39. Rb4 {[%clk 0:00:23]} 39... Re4 {[%clk 0:00:48.8]} 40. f3 {[%clk 0:00:09.9]}
40... gxf3+ {[%clk 0:00:47.5]} 41. Kxf3 {[%clk 0:00:10.8]} 41... Kf5 {[%clk
0:00:45.1]} 42. Ke2 {[%clk 0:00:06.5]} 42... c3 {[%clk 0:00:41.8]} 43. Rb6
{[%clk 0:00:04]} 43... Rc4 {[%clk 0:00:39.9]} 44. Kd1 {[%clk 0:00:04.6]} 44...
Rxc5 {[%clk 0:00:39.9]} 45. Rb7 {[%clk 0:00:04]} 45... f6 {[%clk 0:00:38.9]} 46.
Rh7 {[%clk 0:00:03.6]} 46... Ke4 {[%clk 0:00:38.7]} 47. Re7+ {[%clk 0:00:03.5]}
47... Kd3 {[%clk 0:00:37.9]} 48. Kc1 {[%clk 0:00:04]} 48... Rf5 {[%clk
0:00:35.2]} 49. Rd7+ {[%clk 0:00:04]} 49... Kxe3 {[%clk 0:00:35.1]} 50. Kc2
{[%clk 0:00:03.7]} 50... Rf3 {[%clk 0:00:25.2]} 51. Rd3+ {[%clk 0:00:03.7]}
51... Ke4 {[%clk 0:00:24]} 52. Rd6 {[%clk 0:00:02.8]} 52... f5 {[%clk
0:00:23.2]} 53. Rxc6 {[%clk 0:00:02.5]} 53... Rxg3 {[%clk 0:00:23.4]} 54. Rh6
{[%clk 0:00:03.3]} 54... f4 {[%clk 0:00:22.7]} 55. Rxh5 {[%clk 0:00:03.6]} 55...
Kd4 {[%clk 0:00:22.6]} 56. Rh8 {[%clk 0:00:03.5]} 56... Rg2+ {[%clk 0:00:22.9]}
57. Kd1 {[%clk 0:00:04.2]} 57... f3 {[%clk 0:00:22.5]} 58. Rf8 {[%clk
0:00:03.8]} 58... f2 {[%clk 0:00:20]} 59. Ke2 {[%clk 0:00:04.2]} 59... c2 {[%clk
0:00:19.7]} 60. Rd8+ {[%clk 0:00:04.7]} 60... Ke5 {[%clk 0:00:19.3]} 61. Re8+
{[%clk 0:00:04.7]} 61... Kd6 {[%clk 0:00:19.5]} 62. Rc8 {[%clk 0:00:05]} 62...
Rg1 {[%clk 0:00:18.9]} 63. Rd8+ {[%clk 0:00:02.2]} 63... Ke7 {[%clk 0:00:18.5]}
0-1

[Event "Late-Titled-Tuesday-Blitz-June-25-2024"]
[Site "Chess.com"]
[Date "2024.06.25"]
[Round "2"]
[White "norwaytoadog"]
[Black "Orest_Vovk"]
[Result "1-0"]
[WhiteElo "2367"]
[BlackElo "2556"]
[TimeControl "180+1"]
[EndTime "14:18:08 PDT"]
[Termination "norwaytoadog won on time"]

1. e4 {[%clk 0:02:59.8]} 1... g5 {[%clk 0:02:54.7]} 2. d4 {[%clk 0:02:57.9]}
2... g4 {[%clk 0:02:55]} 3. Nc3 {[%clk 0:02:57.2]} 3... Bg7 {[%clk 0:02:54.7]}
4. h3 {[%clk 0:02:55.8]} 4... c5 {[%clk 0:02:54.8]} 5. d5 {[%clk 0:02:55.1]}
5... g3 {[%clk 0:02:52.9]} 6. fxg3 {[%clk 0:02:51.4]} 6... Bxc3+ {[%clk
0:02:52.3]} 7. bxc3 {[%clk 0:02:51.2]} 7... d6 {[%clk 0:02:53.2]} 8. Bf4 {[%clk
0:02:41]} 8... Qa5 {[%clk 0:02:52.7]} 9. Qd2 {[%clk 0:02:37.1]} 9... Nf6 {[%clk
0:02:52]} 10. Bd3 {[%clk 0:02:36.2]} 10... c4 {[%clk 0:02:52.3]} 11. Bxc4 {[%clk
0:02:28.5]} 11... Nxe4 {[%clk 0:02:47.2]} 12. Qd4 {[%clk 0:02:28.3]} 12... Qxc3+
{[%clk 0:02:45.9]} 13. Qxc3 {[%clk 0:02:28.5]} 13... Nxc3 {[%clk 0:02:46.8]} 14.
Nf3 {[%clk 0:02:12.6]} 14... Bf5 {[%clk 0:02:36.6]} 15. Kd2 {[%clk 0:02:10.5]}
15... Ne4+ {[%clk 0:02:36.2]} 16. Ke3 {[%clk 0:02:10.5]} 16... Nc5 {[%clk
0:02:33.7]} 17. g4 {[%clk 0:02:06.7]} 17... Bxc2 {[%clk 0:02:33.4]} 18. Rac1
{[%clk 0:02:01.9]} 18... Bg6 {[%clk 0:02:31.7]} 19. Bb5+ {[%clk 0:01:59.5]}
19... Nbd7 {[%clk 0:02:31.3]} 20. Nd4 {[%clk 0:01:54.7]} 20... a6 {[%clk
0:02:29.4]} 21. Be2 {[%clk 0:01:52.7]} 21... Nf6 {[%clk 0:02:21.1]} 22. Bf3
{[%clk 0:01:51.4]} 22... Kd7 {[%clk 0:02:08.6]} 23. g5 {[%clk 0:01:48.4]} 23...
Nfe4 {[%clk 0:01:46.9]} 24. h4 {[%clk 0:01:43.1]} 24... f5 {[%clk 0:01:28.2]}
25. h5 {[%clk 0:01:38.6]} 25... Bf7 {[%clk 0:01:26.2]} 26. Nxf5 {[%clk
0:01:35.3]} 26... Bxd5 {[%clk 0:01:24.8]} 27. Rhd1 {[%clk 0:01:31.2]} 27... Bc6
{[%clk 0:01:14.7]} 28. Bxe4 {[%clk 0:01:25.5]} 28... Nxe4 {[%clk 0:01:09.1]} 29.
Rxc6 {[%clk 0:01:24.1]} 29... bxc6 {[%clk 0:01:08.9]} 30. Kxe4 {[%clk
0:01:24.6]} 30... Rab8 {[%clk 0:01:06.9]} 31. g6 {[%clk 0:01:09.3]} 31... hxg6
{[%clk 0:01:04.9]} 32. hxg6 {[%clk 0:01:09.3]} 32... Rb4+ {[%clk 0:01:04]} 33.
Kf3 {[%clk 0:01:06.9]} 33... Rf8 {[%clk 0:00:57.7]} 34. g7 {[%clk 0:01:01.9]}
34... Rg8 {[%clk 0:00:52.3]} 35. Be5 {[%clk 0:00:50.4]} 35... Rb5 {[%clk
0:00:22.5]} 36. Nh6 {[%clk 0:00:28.2]} 36... Rxe5 {[%clk 0:00:20.6]} 37. Nxg8
{[%clk 0:00:28.4]} 37... Rg5 {[%clk 0:00:21.1]} 38. Nh6 {[%clk 0:00:20.8]} 38...
Rxg7 {[%clk 0:00:21.2]} 39. g4 {[%clk 0:00:20.8]} 39... Rf7+ {[%clk 0:00:19.4]}
40. Ke4 {[%clk 0:00:19.9]} 40... Rf2 {[%clk 0:00:17.9]} 41. g5 {[%clk
0:00:18.5]} 41... Rg2 {[%clk 0:00:17.6]} 42. Kf4 {[%clk 0:00:17.8]} 42... c5
{[%clk 0:00:10]} 43. Nf5 {[%clk 0:00:14.7]} 43... c4 {[%clk 0:00:05.9]} 44. Ng3
{[%clk 0:00:14.7]} 44... Ke8 {[%clk 0:00:01.9]} 45. Rh1 {[%clk 0:00:11.9]} 45...
Rf2+ {[%clk 0:00:02.2]} 46. Ke4 {[%clk 0:00:11.5]} 46... Rxa2 {[%clk 0:00:03.1]}
47. Rh7 {[%clk 0:00:10.9]} 47... Kf8 {[%clk 0:00:03.1]} 48. g6 {[%clk
0:00:10.7]} 48... Rg2 {[%clk 0:00:03.6]} 49. Kf3 {[%clk 0:00:10.7]} 49... Rg1
{[%clk 0:00:03.4]} 50. Kf2 {[%clk 0:00:09.1]} 50... Rxg3 {[%clk 0:00:02.3]} 51.
Kxg3 {[%clk 0:00:08.6]} 51... c3 {[%clk 0:00:02.5]} 52. Rh2 {[%clk 0:00:08.5]}
52... d5 {[%clk 0:00:02.5]} 53. Kf3 {[%clk 0:00:07.9]} 53... e5 {[%clk
0:00:02.4]} 54. Rg2 {[%clk 0:00:07]} 54... Kg7 {[%clk 0:00:02.4]} 55. Ke3 {[%clk
0:00:06.7]} 55... a5 {[%clk 0:00:02.4]} 56. Kd3 {[%clk 0:00:06.7]} 56... d4
{[%clk 0:00:02.9]} 57. Rg5 {[%clk 0:00:05.7]} 1-0

[Event "Late-Titled-Tuesday-Blitz-June-25-2024"]
[Site "Chess.com"]
[Date "2024.06.25"]
[Round "2"]
[White "Ykow"]
[Black "NailBashirli"]
[Result "1-0"]
[WhiteElo "2561"]
[BlackElo "2766"]
[TimeControl "180+1"]
[EndTime "14:18:11 PDT"]
[Termination "Ykow won by checkmate"]

1. e4 {[%clk 0:03:00.9]} 1... c5 {[%clk 0:02:58.4]} 2. Nf3 {[%clk 0:02:59.7]}
2... d6 {[%clk 0:02:57.4]} 3. Nc3 {[%clk 0:02:59.9]} 3... a6 {[%clk 0:02:50.7]}
4. g3 {[%clk 0:02:59.7]} 4... b5 {[%clk 0:02:38.9]} 5. Bg2 {[%clk 0:02:59.7]}
5... Bb7 {[%clk 0:02:32.9]} 6. O-O {[%clk 0:02:59]} 6... e6 {[%clk 0:02:29.5]}
7. d4 {[%clk 0:02:57.6]} 7... cxd4 {[%clk 0:02:26.9]} 8. Nxd4 {[%clk 0:02:57.7]}
8... Ne7 {[%clk 0:02:25.1]} 9. Re1 {[%clk 0:02:54]} 9... Nbc6 {[%clk 0:02:22.2]}
10. Nb3 {[%clk 0:02:26.7]} 10... Ne5 {[%clk 0:02:04.6]} 11. a4 {[%clk
0:02:23.5]} 11... b4 {[%clk 0:02:00.8]} 12. Na2 {[%clk 0:02:23.5]} 12... N7c6
{[%clk 0:01:55.3]} 13. Qe2 {[%clk 0:02:15.8]} 13... Be7 {[%clk 0:01:53.3]} 14.
f4 {[%clk 0:02:15.4]} 14... Nd7 {[%clk 0:01:53.2]} 15. Be3 {[%clk 0:02:13.2]}
15... O-O {[%clk 0:01:52.5]} 16. Rad1 {[%clk 0:02:12]} 16... Qc7 {[%clk
0:01:52.5]} 17. c3 {[%clk 0:02:09.7]} 17... bxc3 {[%clk 0:01:30.6]} 18. Nxc3
{[%clk 0:02:10.6]} 18... Rfd8 {[%clk 0:01:27.4]} 19. h4 {[%clk 0:02:07.5]} 19...
Na5 {[%clk 0:01:18.6]} 20. Nxa5 {[%clk 0:02:00]} 20... Qxa5 {[%clk 0:01:19.5]}
21. e5 {[%clk 0:01:51.9]} 21... Bxg2 {[%clk 0:01:14.9]} 22. exd6 {[%clk
0:01:51.8]} 22... Bxd6 {[%clk 0:01:07]} 23. Rxd6 {[%clk 0:01:51.3]} 23... Bb7
{[%clk 0:01:03.7]} 24. Red1 {[%clk 0:01:51.2]} 24... Qc7 {[%clk 0:00:28.8]} 25.
Qd2 {[%clk 0:01:51]} 25... Bd5 {[%clk 0:00:27.8]} 26. Nxd5 {[%clk 0:01:45.2]}
26... Qxd6 {[%clk 0:00:27.7]} 27. Nf6+ {[%clk 0:01:45.9]} 27... Nxf6 {[%clk
0:00:28.1]} 28. Qxd6 {[%clk 0:01:46.8]} 28... Rxd6 {[%clk 0:00:29]} 29. Rxd6
{[%clk 0:01:47.7]} 29... h5 {[%clk 0:00:23.7]} 30. b4 {[%clk 0:01:31.7]} 30...
Nd5 {[%clk 0:00:22.7]} 31. Bc5 {[%clk 0:01:29.7]} 31... Rb8 {[%clk 0:00:21.5]}
32. Rxa6 {[%clk 0:01:20.6]} 32... Nxb4 {[%clk 0:00:21.5]} 33. Rd6 {[%clk
0:01:18.2]} 33... Nd5 {[%clk 0:00:19.7]} 34. a5 {[%clk 0:01:14.7]} 34... Rb5
{[%clk 0:00:19.9]} 35. a6 {[%clk 0:01:14]} 35... Rxc5 {[%clk 0:00:19.8]} 36. a7
{[%clk 0:01:12.7]} 36... Nc7 {[%clk 0:00:18.8]} 37. Rd8+ {[%clk 0:01:12.8]}
37... Kh7 {[%clk 0:00:18.4]} 38. Rc8 {[%clk 0:01:13.5]} 38... Ra5 {[%clk
0:00:15.6]} 39. Rxc7 {[%clk 0:01:13.6]} 39... Kg6 {[%clk 0:00:15.9]} 40. Kf2
{[%clk 0:01:13.8]} 40... Ra3 {[%clk 0:00:16.3]} 41. Ke2 {[%clk 0:01:13.6]} 41...
f6 {[%clk 0:00:15.2]} 42. Kd2 {[%clk 0:01:13.9]} 42... e5 {[%clk 0:00:14.2]} 43.
fxe5 {[%clk 0:01:08.3]} 43... fxe5 {[%clk 0:00:15.1]} 44. Kc2 {[%clk 0:01:07.4]}
44... e4 {[%clk 0:00:15.3]} 45. Kb2 {[%clk 0:01:07.3]} 45... Ra5 {[%clk
0:00:15.4]} 46. Kc3 {[%clk 0:01:07.7]} 46... e3 {[%clk 0:00:14.4]} 47. Kd3
{[%clk 0:01:07.9]} 47... Ra3+ {[%clk 0:00:14.7]} 48. Ke2 {[%clk 0:01:07.9]}
48... Kf6 {[%clk 0:00:14.9]} 49. Kf3 {[%clk 0:01:08.2]} 49... g6 {[%clk
0:00:14.1]} 50. Ke2 {[%clk 0:01:04.7]} 50... Kf5 {[%clk 0:00:14.1]} 51. Rc5+
{[%clk 0:01:01.9]} 51... Ke4 {[%clk 0:00:13.8]} 52. Rc4+ {[%clk 0:01:01.8]}
52... Ke5 {[%clk 0:00:13.1]} 53. Rc7 {[%clk 0:00:58]} 53... Kd4 {[%clk
0:00:13.1]} 54. Kf3 {[%clk 0:00:53.5]} 54... Ra2 {[%clk 0:00:10.6]} 55. Rd7+
{[%clk 0:00:52.6]} 55... Ke5 {[%clk 0:00:10.1]} 56. Kxe3 {[%clk 0:00:53.5]}
56... Kf5 {[%clk 0:00:09.3]} 57. Kd4 {[%clk 0:00:39.7]} 57... Kg4 {[%clk
0:00:09]} 58. Kc5 {[%clk 0:00:39.6]} 58... Kxg3 {[%clk 0:00:09.2]} 59. Kb5
{[%clk 0:00:39.8]} 59... Rxa7 {[%clk 0:00:03.9]} 60. Rxa7 {[%clk 0:00:39.5]}
60... Kxh4 {[%clk 0:00:04.8]} 61. Kc4 {[%clk 0:00:39.4]} 61... Kg3 {[%clk
0:00:05.7]} 62. Rg7 {[%clk 0:00:38.8]} 62... h4 {[%clk 0:00:05.8]} 63. Rxg6+
{[%clk 0:00:39.3]} 63... Kf2 {[%clk 0:00:06.4]} 64. Rh6 {[%clk 0:00:38.1]} 64...
Kg3 {[%clk 0:00:06.8]} 65. Kd3 {[%clk 0:00:39]} 65... h3 {[%clk 0:00:07.2]} 66.
Ke2 {[%clk 0:00:39.9]} 66... Kg2 {[%clk 0:00:06.7]} 67. Rg6+ {[%clk 0:00:40]}
67... Kh1 {[%clk 0:00:07.2]} 68. Kf3 {[%clk 0:00:33.4]} 68... h2 {[%clk
0:00:06.7]} 69. Rb6 {[%clk 0:00:33]} 69... Kg1 {[%clk 0:00:07.2]} 70. Rb1#
{[%clk 0:00:33.9]} 1-0